[Event "Live Chess"]
[Site "Chess.com"]
[Date "2023.05.21"]
[Round "-"]
[White "LL220284LL"]
[Black "Ian-Morley"]
[Result "0-1"]
[WhiteElo "2226"]
[BlackElo "1122"]
[TimeControl "300"]
[EndTime "8:57:24 PDT"]
[Termination "Ian-Morley won by checkmate"]

1. e4 {[%clk 0:04:59.3]} 1... e5 {[%clk 0:04:58.4]} 2. Nf3 {[%clk 0:04:58.3]}
2... Nc6 {[%clk 0:04:57.8]} 3. Bc4 {[%clk 0:04:56.6]} 3... Nf6 {[%clk
0:04:56.6]} 4. Ng5 {[%clk 0:04:55.9]} 4... d5 {[%clk 0:04:55.9]} 5. exd5 {[%clk
0:04:55.3]} 5... Na5 {[%clk 0:04:55]} 6. d3 {[%clk 0:04:54.6]} 6... h6 {[%clk
0:04:51.4]} 7. Nf3 {[%clk 0:04:52.8]} 7... e4 {[%clk 0:04:48.7]} 8. Qe2 {[%clk
0:04:51.7]} 8... Nxc4 {[%clk 0:04:32.1]} 9. dxc4 {[%clk 0:04:51.6]} 9... Be7
{[%clk 0:04:30]} 10. Nd4 {[%clk 0:04:48.3]} 10... c6 {[%clk 0:04:26.5]} 11. h3
{[%clk 0:04:42.5]} 11... cxd5 {[%clk 0:04:25]} 12. cxd5 {[%clk 0:04:41.6]} 12...
Qxd5 {[%clk 0:04:23.6]} 13. Nb3 {[%clk 0:04:39.9]} 13... Bb4+ {[%clk 0:04:17.7]}
14. c3 {[%clk 0:04:38.7]} 14... Bd6 {[%clk 0:04:15.4]} 15. Be3 {[%clk
0:04:34.3]} 15... Qd3 {[%clk 0:04:13.8]} 16. N1d2 {[%clk 0:04:32.3]} 16... Qxe2+
{[%clk 0:04:13]} 17. Kxe2 {[%clk 0:04:32.2]} 17... b6 {[%clk 0:04:08.9]} 18. Nc4
{[%clk 0:04:29.6]} 18... Ba6 {[%clk 0:04:06.7]} 19. Nd2 {[%clk 0:04:28]} 19...
Rc8 {[%clk 0:04:00.5]} 20. b3 {[%clk 0:04:25.7]} 20... Nd5 {[%clk 0:03:55]} 21.
Rac1 {[%clk 0:04:22.7]} 21... Nxe3 {[%clk 0:03:53.5]} 22. Kxe3 {[%clk
0:04:20.8]} 22... Bc5+ {[%clk 0:03:52.3]} 23. Kxe4 {[%clk 0:04:18.6]} 23... O-O
{[%clk 0:03:51.5]} 24. Ne3 {[%clk 0:04:14.7]} 24... Rfe8+ {[%clk 0:03:50.2]} 25.
Kf3 {[%clk 0:04:13.7]} 25... Bb7+ {[%clk 0:03:44.6]} 26. Kg3 {[%clk 0:04:10.5]}
26... Bxe3 {[%clk 0:03:41.8]} 27. fxe3 {[%clk 0:04:10.4]} 27... Rxe3+ {[%clk
0:03:40.7]} 28. Kf2 {[%clk 0:04:08.5]} 28... Rce8 {[%clk 0:03:37.9]} 29. Nc4
{[%clk 0:04:05.4]} 29... Re2+ {[%clk 0:03:36.4]} 30. Kg3 {[%clk 0:04:04.4]}
30... Rxg2+ {[%clk 0:03:33]} 31. Kf4 {[%clk 0:04:03.4]} 31... Re4+ {[%clk
0:03:30.4]} 32. Kf5 {[%clk 0:04:01.2]} 32... g6+ {[%clk 0:03:27.9]} 33. Kf6
{[%clk 0:04:00.4]} 33... Rf2# {[%clk 0:03:27.1]} 0-1

[Event "Live Chess"]
[Site "Chess.com"]
[Date "2023.05.21"]
[Round "-"]
[White "JanMur7"]
[Black "Shparii"]
[Result "1-0"]
[WhiteElo "1952"]
[BlackElo "1456"]
[TimeControl "300"]
[EndTime "8:57:32 PDT"]
[Termination "JanMur7 won by resignation"]

1. e4 {[%clk 0:04:58.5]} 1... e6 {[%clk 0:04:59.6]} 2. d4 {[%clk 0:04:57.3]}
2... d5 {[%clk 0:04:59.5]} 3. exd5 {[%clk 0:04:57.2]} 3... exd5 {[%clk
0:04:58.3]} 4. Bd3 {[%clk 0:04:57.1]} 4... Nf6 {[%clk 0:04:56.3]} 5. Ne2 {[%clk
0:04:56.3]} 5... Bg4 {[%clk 0:04:55.2]} 6. h3 {[%clk 0:04:55.1]} 6... Bh5 {[%clk
0:04:54.2]} 7. O-O {[%clk 0:04:54.6]} 7... Bd6 {[%clk 0:04:48.7]} 8. c3 {[%clk
0:04:51.1]} 8... O-O {[%clk 0:04:46.8]} 9. Qc2 {[%clk 0:04:47.9]} 9... Re8
{[%clk 0:04:35.7]} 10. Nf4 {[%clk 0:04:45.9]} 10... Bg6 {[%clk 0:04:28]} 11.
Nxg6 {[%clk 0:04:43]} 11... fxg6 {[%clk 0:04:20.3]} 12. Bg5 {[%clk 0:04:38.8]}
12... c6 {[%clk 0:04:13.7]} 13. Nd2 {[%clk 0:04:29.7]} 13... Nbd7 {[%clk
0:04:08.4]} 14. Rfe1 {[%clk 0:04:25.5]} 14... Qc7 {[%clk 0:04:05.5]} 15. Nf3
{[%clk 0:04:22.9]} 15... Bf4 {[%clk 0:03:56.5]} 16. Bxf4 {[%clk 0:04:19.1]}
16... Qxf4 {[%clk 0:03:55.3]} 17. Rxe8+ {[%clk 0:04:17.3]} 17... Rxe8 {[%clk
0:03:53.5]} 18. Re1 {[%clk 0:04:16.3]} 18... Rxe1+ {[%clk 0:03:48.6]} 19. Nxe1
{[%clk 0:04:16.2]} 19... Ne4 {[%clk 0:03:42.6]} 20. Bxe4 {[%clk 0:04:14.6]}
20... dxe4 {[%clk 0:03:39.8]} 21. Qb3+ {[%clk 0:04:10.7]} 21... Kf8 {[%clk
0:03:07]} 22. Qxb7 {[%clk 0:04:07.4]} 22... e3 {[%clk 0:02:49.1]} 23. fxe3
{[%clk 0:04:04.6]} 23... Qxe3+ {[%clk 0:02:47.9]} 24. Kf1 {[%clk 0:04:01.6]}
24... Nf6 {[%clk 0:02:38.4]} 25. Qa8+ {[%clk 0:03:51.6]} 25... Ke7 {[%clk
0:02:34.3]} 26. Qxa7+ {[%clk 0:03:49.8]} 26... Ke6 {[%clk 0:02:30.1]} 27. Qc5
{[%clk 0:03:45.4]} 27... Qf4+ {[%clk 0:02:09.5]} 28. Nf3 {[%clk 0:03:40.6]}
28... Ne4 {[%clk 0:02:02.3]} 29. Qxc6+ {[%clk 0:03:33.8]} 29... Ke7 {[%clk
0:01:55.5]} 30. Qb7+ {[%clk 0:03:29.5]} 30... Ke6 {[%clk 0:01:53.3]} 31. Qa6+
{[%clk 0:03:25.2]} 31... Ke7 {[%clk 0:01:45.2]} 32. Qb7+ {[%clk 0:03:23]} 32...
Ke6 {[%clk 0:01:43.6]} 33. Qxe4+ {[%clk 0:03:21]} 33... Qxe4 {[%clk 0:01:41]}
34. Ng5+ {[%clk 0:03:20]} 34... Kf5 {[%clk 0:01:35.6]} 35. Nxe4 {[%clk
0:03:19.9]} 35... Kxe4 {[%clk 0:01:34.7]} 36. a4 {[%clk 0:03:19.8]} 1-0

[Event "Live Chess"]
[Site "Chess.com"]
[Date "2023.05.21"]
[Round "-"]
[White "jimwad"]
[Black "defenderalist"]
[Result "0-1"]
[WhiteElo "1220"]
[BlackElo "1628"]
[TimeControl "300"]
[EndTime "8:57:33 PDT"]
[Termination "defenderalist won by resignation"]

1. c4 {[%clk 0:04:57.9]} 1... Nf6 {[%clk 0:04:58.8]} 2. g3 {[%clk 0:04:53.6]}
2... e6 {[%clk 0:04:58.7]} 3. Bg2 {[%clk 0:04:51.5]} 3... Nc6 {[%clk 0:04:54.6]}
4. Nc3 {[%clk 0:04:50.2]} 4... g6 {[%clk 0:04:50]} 5. e3 {[%clk 0:04:49.2]} 5...
Bg7 {[%clk 0:04:49.1]} 6. d3 {[%clk 0:04:45.9]} 6... O-O {[%clk 0:04:48.4]} 7.
Nge2 {[%clk 0:04:44.7]} 7... d5 {[%clk 0:04:46.3]} 8. cxd5 {[%clk 0:04:42.4]}
8... exd5 {[%clk 0:04:45.4]} 9. d4 {[%clk 0:04:41.2]} 9... Ne7 {[%clk
0:04:39.4]} 10. O-O {[%clk 0:04:39.5]} 10... c6 {[%clk 0:04:38.3]} 11. b3 {[%clk
0:04:38.1]} 11... Bg4 {[%clk 0:04:34.8]} 12. Ba3 {[%clk 0:04:34.8]} 12... Re8
{[%clk 0:04:26.2]} 13. Qc2 {[%clk 0:04:33.4]} 13... Qd7 {[%clk 0:04:21.3]} 14.
Nf4 {[%clk 0:04:27.4]} 14... Nh5 {[%clk 0:04:00]} 15. Nxh5 {[%clk 0:04:16.7]}
15... Bxh5 {[%clk 0:03:52.1]} 16. Ne2 {[%clk 0:04:10.9]} 16... Bg4 {[%clk
0:03:43.7]} 17. Nf4 {[%clk 0:04:08.7]} 17... g5 {[%clk 0:03:41.2]} 18. h3 {[%clk
0:04:03.6]} 18... gxf4 {[%clk 0:03:36.1]} 19. h4 {[%clk 0:04:02.6]} 0-1

[Event "Live Chess"]
[Site "Chess.com"]
[Date "2023.05.21"]
[Round "-"]
[White "alanmike75"]
[Black "Alfiedog12"]
[Result "1-0"]
[WhiteElo "1600"]
[BlackElo "867"]
[TimeControl "300"]
[EndTime "8:57:37 PDT"]
[Termination "alanmike75 won on time"]

1. e4 {[%clk 0:04:58.4]} 1... c6 {[%clk 0:04:58.3]} 2. Nf3 {[%clk 0:04:56.2]}
2... d5 {[%clk 0:04:58]} 3. exd5 {[%clk 0:04:55.1]} 3... cxd5 {[%clk 0:04:56.6]}
4. Ne5 {[%clk 0:04:54.1]} 4... Nf6 {[%clk 0:04:53.6]} 5. d4 {[%clk 0:04:51.8]}
5... Bf5 {[%clk 0:04:51.8]} 6. Bd3 {[%clk 0:04:46.2]} 6... e6 {[%clk 0:04:50.3]}
7. Bxf5 {[%clk 0:04:44.1]} 7... exf5 {[%clk 0:04:48.7]} 8. O-O {[%clk
0:04:42.9]} 8... Bd6 {[%clk 0:04:45.8]} 9. Re1 {[%clk 0:04:41.3]} 9... O-O
{[%clk 0:04:43.9]} 10. Nd2 {[%clk 0:04:35.8]} 10... Re8 {[%clk 0:04:42.6]} 11.
Ndf3 {[%clk 0:04:34.6]} 11... Bxe5 {[%clk 0:04:28.3]} 12. Nxe5 {[%clk
0:04:30.4]} 12... Ne4 {[%clk 0:04:23.7]} 13. f3 {[%clk 0:04:24.1]} 13... Nd6
{[%clk 0:04:05.8]} 14. c3 {[%clk 0:04:22.8]} 14... Nd7 {[%clk 0:04:02.2]} 15.
Nd3 {[%clk 0:04:13.3]} 15... Rxe1+ {[%clk 0:03:50.2]} 16. Qxe1 {[%clk
0:04:11.2]} 16... Nf6 {[%clk 0:03:49.1]} 17. Bg5 {[%clk 0:04:02.2]} 17... Nde8
{[%clk 0:03:36]} 18. Qe5 {[%clk 0:03:52.6]} 18... h6 {[%clk 0:03:29.2]} 19. Bh4
{[%clk 0:03:47.7]} 19... Qb6 {[%clk 0:03:12.3]} 20. Bf2 {[%clk 0:03:34.9]} 20...
Nd6 {[%clk 0:03:00.7]} 21. b3 {[%clk 0:03:28.2]} 21... Rc8 {[%clk 0:02:55.9]}
22. Nc5 {[%clk 0:03:21.5]} 22... Re8 {[%clk 0:02:40.1]} 23. Qf4 {[%clk
0:03:18.8]} 23... Nh5 {[%clk 0:02:26.3]} 24. Qd2 {[%clk 0:03:15.9]} 24... f6
{[%clk 0:02:12.6]} 25. Re1 {[%clk 0:03:11.4]} 25... Rxe1+ {[%clk 0:02:06.4]} 26.
Qxe1 {[%clk 0:03:09.6]} 26... Qc7 {[%clk 0:01:59.3]} 27. Qe6+ {[%clk 0:03:05]}
27... Kh7 {[%clk 0:01:51.6]} 28. Qxd5 {[%clk 0:03:02.2]} 28... Nf7 {[%clk
0:01:44.6]} 29. Qxf5+ {[%clk 0:02:54.7]} 29... g6 {[%clk 0:01:40.1]} 30. Qd3
{[%clk 0:02:47.2]} 30... Qf4 {[%clk 0:01:29.1]} 31. Be3 {[%clk 0:02:39]} 31...
Qd6 {[%clk 0:01:16.7]} 32. Ne4 {[%clk 0:02:20.9]} 32... Qe6 {[%clk 0:01:10.3]}
33. g4 {[%clk 0:02:14.3]} 33... Ng7 {[%clk 0:01:05]} 34. Ng3 {[%clk 0:02:08.5]}
34... Qd5 {[%clk 0:00:56.2]} 35. Qe4 {[%clk 0:02:03.4]} 35... Qa5 {[%clk
0:00:48.2]} 36. Qe7 {[%clk 0:01:52.3]} 36... Ng5 {[%clk 0:00:39.3]} 37. Bxg5
{[%clk 0:01:50.1]} 37... fxg5 {[%clk 0:00:37.5]} 38. Ne4 {[%clk 0:01:28.9]}
38... Qxa2 {[%clk 0:00:35.3]} 39. Qxb7 {[%clk 0:01:26.2]} 39... Qb1+ {[%clk
0:00:31.3]} 40. Kg2 {[%clk 0:01:22.6]} 40... Qc2+ {[%clk 0:00:29.4]} 41. Kg3
{[%clk 0:01:21.1]} 41... Qc1 {[%clk 0:00:15]} 42. Nf6+ {[%clk 0:01:18.2]} 42...
Kh8 {[%clk 0:00:05.5]} 43. Qc8+ {[%clk 0:01:16.5]} 1-0

[Event "Live Chess"]
[Site "Chess.com"]
[Date "2023.05.21"]
[Round "-"]
[White "djw60"]
[Black "gmnorfolk"]
[Result "0-1"]
[WhiteElo "2141"]
[BlackElo "2131"]
[TimeControl "300"]
[EndTime "8:57:45 PDT"]
[Termination "gmnorfolk won on time"]

1. g3 {[%clk 0:04:58.8]} 1... c5 {[%clk 0:04:56.8]} 2. Bg2 {[%clk 0:04:57.5]}
2... g6 {[%clk 0:04:56.4]} 3. c4 {[%clk 0:04:55.9]} 3... Bg7 {[%clk 0:04:55.4]}
4. Nc3 {[%clk 0:04:55.5]} 4... Nc6 {[%clk 0:04:54.4]} 5. e3 {[%clk 0:04:54.6]}
5... e5 {[%clk 0:04:51.3]} 6. Nge2 {[%clk 0:04:53.7]} 6... Nge7 {[%clk
0:04:50.1]} 7. O-O {[%clk 0:04:50.5]} 7... O-O {[%clk 0:04:49.5]} 8. d3 {[%clk
0:04:46.6]} 8... d6 {[%clk 0:04:46.6]} 9. a3 {[%clk 0:04:45]} 9... Rb8 {[%clk
0:04:43.4]} 10. b4 {[%clk 0:04:40.2]} 10... cxb4 {[%clk 0:04:27.3]} 11. axb4
{[%clk 0:04:38.3]} 11... Nxb4 {[%clk 0:04:25.7]} 12. Rxa7 {[%clk 0:04:31.6]}
12... d5 {[%clk 0:04:24.2]} 13. Ba3 {[%clk 0:04:21]} 13... Nbc6 {[%clk
0:04:19.5]} 14. Bxe7 {[%clk 0:04:19.2]} 14... Nxe7 {[%clk 0:04:02.1]} 15. Nxd5
{[%clk 0:04:15.6]} 15... Nxd5 {[%clk 0:04:00]} 16. Bxd5 {[%clk 0:04:11.7]} 16...
b5 {[%clk 0:03:55.9]} 17. Qb3 {[%clk 0:03:51.9]} 17... Bh3 {[%clk 0:03:51.6]}
18. Rfa1 {[%clk 0:03:34.1]} 18... bxc4 {[%clk 0:03:46.2]} 19. Qxc4 {[%clk
0:03:29]} 19... Qb6 {[%clk 0:03:30.5]} 20. Bxf7+ {[%clk 0:03:16]} 20... Kh8
{[%clk 0:03:26.2]} 21. Qc7 {[%clk 0:02:35]} 21... Qf6 {[%clk 0:02:54.1]} 22. f4
{[%clk 0:02:15]} 22... Rb2 {[%clk 0:02:35.9]} 23. Re1 {[%clk 0:01:42.7]} 23...
Rxe2 {[%clk 0:02:02.6]} 24. Rxe2 {[%clk 0:01:40.5]} 24... Rc8 {[%clk 0:01:57.8]}
25. Qe7 {[%clk 0:01:23.9]} 25... Rc1+ {[%clk 0:01:53.2]} 26. Re1 {[%clk
0:01:11.2]} 26... Rxe1+ {[%clk 0:01:48.1]} 27. Kf2 {[%clk 0:01:10.5]} 27... Rf1+
{[%clk 0:01:43.8]} 28. Ke2 {[%clk 0:01:09.4]} 28... Qxe7 {[%clk 0:01:37.8]} 29.
Rxe7 {[%clk 0:01:08.1]} 29... Bf6 {[%clk 0:01:32.1]} 30. Re8+ {[%clk 0:01:02.7]}
30... Kg7 {[%clk 0:01:31]} 31. Be6 {[%clk 0:00:57.1]} 31... Rh1 {[%clk
0:01:19.7]} 32. fxe5 {[%clk 0:00:50]} 32... Rxh2+ {[%clk 0:01:05.6]} 33. Kf3
{[%clk 0:00:45.1]} 33... Bxe6 {[%clk 0:00:32.6]} 34. Rxe6 {[%clk 0:00:43.1]}
34... Bg5 {[%clk 0:00:31.3]} 35. d4 {[%clk 0:00:38.9]} 35... Rd2 {[%clk
0:00:27.8]} 36. Rd6 {[%clk 0:00:28.7]} 36... h5 {[%clk 0:00:20.4]} 37. Rd7+
{[%clk 0:00:26.7]} 37... Kf8 {[%clk 0:00:18]} 38. e6 {[%clk 0:00:24.9]} 38...
Rd3 {[%clk 0:00:15.9]} 39. d5 {[%clk 0:00:23.4]} 39... Rxe3+ {[%clk 0:00:14.7]}
40. Kf2 {[%clk 0:00:21.1]} 40... Re5 {[%clk 0:00:13.7]} 41. Rf7+ {[%clk
0:00:18.7]} 41... Ke8 {[%clk 0:00:12.4]} 42. Rd7 {[%clk 0:00:16.6]} 42... Be7
{[%clk 0:00:10.7]} 43. Kf3 {[%clk 0:00:15]} 43... g5 {[%clk 0:00:09.5]} 44. d6
{[%clk 0:00:10.9]} 44... Rxe6 {[%clk 0:00:08.3]} 45. dxe7 {[%clk 0:00:10]} 45...
Rxe7 {[%clk 0:00:07.7]} 46. Rd5 {[%clk 0:00:08.6]} 46... Rg7 {[%clk 0:00:06]}
47. Ke4 {[%clk 0:00:06.9]} 47... Kf7 {[%clk 0:00:05.2]} 48. Kf5 {[%clk
0:00:05.9]} 48... Kg8 {[%clk 0:00:03.5]} 49. Rd8+ {[%clk 0:00:04.7]} 49... Kh7
{[%clk 0:00:02.9]} 50. Rd6 {[%clk 0:00:03.9]} 50... h4 {[%clk 0:00:02.4]} 51.
gxh4 {[%clk 0:00:03]} 51... g4 {[%clk 0:00:01.8]} 52. Rd2 {[%clk 0:00:00.8]}
52... g3 {[%clk 0:00:01.7]} 0-1

[Event "Live Chess"]
[Site "Chess.com"]
[Date "2023.05.21"]
[Round "-"]
[White "BillythekidFellowes"]
[Black "peter-785"]
[Result "1-0"]
[WhiteElo "2120"]
[BlackElo "1159"]
[TimeControl "300"]
[EndTime "8:57:45 PDT"]
[Termination "BillythekidFellowes won by resignation"]

1. e4 {[%clk 0:04:58.4]} 1... c5 {[%clk 0:04:58.6]} 2. Nf3 {[%clk 0:04:58.3]}
2... d6 {[%clk 0:04:57.9]} 3. d4 {[%clk 0:04:57.1]} 3... cxd4 {[%clk 0:04:56.4]}
4. Qxd4 {[%clk 0:04:57]} 4... Nc6 {[%clk 0:04:55.7]} 5. Bb5 {[%clk 0:04:55.8]}
5... Bd7 {[%clk 0:04:53.5]} 6. Bxc6 {[%clk 0:04:53]} 6... Bxc6 {[%clk
0:04:52.9]} 7. Nc3 {[%clk 0:04:52.8]} 7... Qb6 {[%clk 0:04:47.2]} 8. Be3 {[%clk
0:04:50.3]} 8... Qxd4 {[%clk 0:04:45.6]} 9. Nxd4 {[%clk 0:04:50.2]} 9... e6
{[%clk 0:04:43]} 10. O-O-O {[%clk 0:04:49.6]} 10... Nf6 {[%clk 0:04:42.4]} 11.
Ndb5 {[%clk 0:04:48.7]} 11... Bxb5 {[%clk 0:04:37.2]} 12. Nxb5 {[%clk
0:04:47.8]} 12... Kd8 {[%clk 0:04:15]} 13. Bxa7 {[%clk 0:04:44.9]} 13... Nxe4
{[%clk 0:04:10.5]} 14. Bb6+ {[%clk 0:04:43.9]} 14... Kc8 {[%clk 0:03:55]} 15. f3
{[%clk 0:04:43.8]} 15... Nc5 {[%clk 0:03:45.8]} 16. Nxd6+ {[%clk 0:04:40.3]}
16... Bxd6 {[%clk 0:03:43.7]} 17. Rxd6 {[%clk 0:04:40.2]} 17... Na6 {[%clk
0:03:36.4]} 18. Rhd1 {[%clk 0:04:38.7]} 18... Nc7 {[%clk 0:03:15.4]} 19. R1d4
{[%clk 0:04:33.3]} 19... Nd5 {[%clk 0:03:11.1]} 20. Rc4+ {[%clk 0:04:26.1]}
20... Kb8 {[%clk 0:03:01.1]} 21. Rc5 {[%clk 0:04:18.6]} 21... Nxb6 {[%clk
0:02:47.8]} 22. Rxb6 {[%clk 0:04:17.1]} 22... Rxa2 {[%clk 0:02:44.8]} 23. Rcb5
{[%clk 0:04:14]} 23... Ra1+ {[%clk 0:02:42.2]} 24. Kd2 {[%clk 0:04:12.8]} 24...
Rd8+ {[%clk 0:02:41.6]} 25. Kc3 {[%clk 0:04:11]} 25... Ra7 {[%clk 0:02:38.9]}
26. Rb4 {[%clk 0:04:06.6]} 26... Rc8+ {[%clk 0:02:38.4]} 27. Kb3 {[%clk
0:04:04.7]} 27... Rd8 {[%clk 0:02:22.9]} 28. Rh4 {[%clk 0:03:54.9]} 28... h6
{[%clk 0:02:21.2]} 29. Rg4 {[%clk 0:03:54]} 29... Rg8 {[%clk 0:02:14.6]} 30. h4
{[%clk 0:03:49.8]} 30... Ra6 {[%clk 0:02:07.8]} 31. Rxa6 {[%clk 0:03:48.5]}
31... bxa6 {[%clk 0:02:07]} 32. h5 {[%clk 0:03:48.4]} 32... f5 {[%clk
0:01:59.2]} 33. Rg6 {[%clk 0:03:46.7]} 33... e5 {[%clk 0:01:56.9]} 34. Kc4
{[%clk 0:03:44.1]} 34... Kb7 {[%clk 0:01:52.1]} 35. Kd5 {[%clk 0:03:42.9]} 35...
a5 {[%clk 0:01:51.4]} 36. Kxe5 {[%clk 0:03:38.3]} 36... f4 {[%clk 0:01:47.3]}
37. Kxf4 {[%clk 0:03:34.6]} 37... Rf8+ {[%clk 0:01:46.8]} 38. Ke5 {[%clk
0:03:31.6]} 38... Rf7 {[%clk 0:01:46.3]} 39. Ke6 {[%clk 0:03:30.5]} 39... Rc7
{[%clk 0:01:45.3]} 40. c3 {[%clk 0:03:28.8]} 40... Rc6+ {[%clk 0:01:41.9]} 41.
Kf7 {[%clk 0:03:27.8]} 41... Rxg6 {[%clk 0:01:37.7]} 42. hxg6 {[%clk 0:03:26.1]}
42... h5 {[%clk 0:01:36.2]} 43. Kxg7 {[%clk 0:03:24.7]} 43... Kc7 {[%clk
0:01:32.6]} 44. Kh6 {[%clk 0:03:22.9]} 1-0

[Event "Live Chess"]
[Site "Chess.com"]
[Date "2023.05.21"]
[Round "-"]
[White "Tiltador"]
[Black "FlyingChessKestrel13"]
[Result "0-1"]
[WhiteElo "934"]
[BlackElo "2084"]
[TimeControl "300"]
[EndTime "8:57:50 PDT"]
[Termination "FlyingChessKestrel13 won by checkmate"]

1. d4 {[%clk 0:04:55.4]} 1... d5 {[%clk 0:04:59]} 2. e3 {[%clk 0:04:54.5]} 2...
Nf6 {[%clk 0:04:57.9]} 3. c3 {[%clk 0:04:53.8]} 3... c6 {[%clk 0:04:57.2]} 4.
Be2 {[%clk 0:04:51.3]} 4... Bf5 {[%clk 0:04:56.1]} 5. Nf3 {[%clk 0:04:50.1]}
5... e6 {[%clk 0:04:55.6]} 6. O-O {[%clk 0:04:49.1]} 6... Bd6 {[%clk 0:04:54.6]}
7. Ne5 {[%clk 0:04:48.1]} 7... Nbd7 {[%clk 0:04:51.8]} 8. f4 {[%clk 0:04:44.8]}
8... Ne4 {[%clk 0:04:50.7]} 9. Nd2 {[%clk 0:04:41.5]} 9... f6 {[%clk 0:04:47.2]}
10. Nxd7 {[%clk 0:04:39.4]} 10... Qxd7 {[%clk 0:04:46]} 11. Nxe4 {[%clk
0:04:38.1]} 11... Bxe4 {[%clk 0:04:45]} 12. Bf3 {[%clk 0:04:34.2]} 12... O-O
{[%clk 0:04:41.1]} 13. Bxe4 {[%clk 0:04:31.9]} 13... dxe4 {[%clk 0:04:40.7]} 14.
Bd2 {[%clk 0:04:24.6]} 14... f5 {[%clk 0:04:39.9]} 15. Qe2 {[%clk 0:04:21]}
15... c5 {[%clk 0:04:38.7]} 16. a3 {[%clk 0:04:16]} 16... cxd4 {[%clk
0:04:37.7]} 17. cxd4 {[%clk 0:04:14.7]} 17... Rac8 {[%clk 0:04:37.2]} 18. b4
{[%clk 0:04:13.1]} 18... Rc2 {[%clk 0:04:34.9]} 19. Rfd1 {[%clk 0:04:06.5]}
19... Rfc8 {[%clk 0:04:34]} 20. a4 {[%clk 0:03:57.5]} 20... Bxb4 {[%clk
0:04:31.4]} 21. Qb5 {[%clk 0:03:51.4]} 21... Qxb5 {[%clk 0:04:29.1]} 22. axb5
{[%clk 0:03:50]} 22... Bxd2 {[%clk 0:04:24.2]} 23. Rxa7 {[%clk 0:03:44.6]} 23...
Bxe3+ {[%clk 0:04:23.1]} 24. Kh1 {[%clk 0:03:40.5]} 24... Rc1 {[%clk 0:04:22.1]}
25. h3 {[%clk 0:03:17.2]} 25... Rxd1+ {[%clk 0:04:18.9]} 26. Kh2 {[%clk
0:03:16.2]} 26... Bxf4+ {[%clk 0:04:17.1]} 27. g3 {[%clk 0:03:10.4]} 27... Rc2#
{[%clk 0:04:16.5]} 0-1

[Event "Live Chess"]
[Site "Chess.com"]
[Date "2023.05.21"]
[Round "-"]
[White "OleksiyJr1"]
[Black "LanceMaster23"]
[Result "0-1"]
[WhiteElo "1025"]
[BlackElo "1958"]
[TimeControl "300"]
[EndTime "8:57:51 PDT"]
[Termination "LanceMaster23 won by resignation"]

1. e4 {[%clk 0:04:57.8]} 1... c5 {[%clk 0:04:58.9]} 2. Nf3 {[%clk 0:04:56.6]}
2... Nc6 {[%clk 0:04:55.6]} 3. Bb5 {[%clk 0:04:56.5]} 3... Qc7 {[%clk
0:04:52.6]} 4. Bxc6 {[%clk 0:04:56.4]} 4... dxc6 {[%clk 0:04:51.9]} 5. Nc3
{[%clk 0:04:56.3]} 5... Bg4 {[%clk 0:04:45.9]} 6. d4 {[%clk 0:04:54.3]} 6...
cxd4 {[%clk 0:04:44.4]} 7. h3 {[%clk 0:04:53.4]} 7... Bxf3 {[%clk 0:04:42.1]} 8.
Qxf3 {[%clk 0:04:51.5]} 8... dxc3 {[%clk 0:04:41.4]} 9. Qxf7+ {[%clk 0:04:50.4]}
9... Kxf7 {[%clk 0:04:32.9]} 10. Bf4 {[%clk 0:04:50.3]} 10... Qxf4 {[%clk
0:04:31.2]} 11. g3 {[%clk 0:04:48.4]} 11... Qxe4+ {[%clk 0:04:28.4]} 0-1

[Event "Live Chess"]
[Site "Chess.com"]
[Date "2023.05.21"]
[Round "-"]
[White "RichardABates"]
[Black "Ed_Knox"]
[Result "1-0"]
[WhiteElo "2190"]
[BlackElo "1473"]
[TimeControl "300"]
[EndTime "8:58:03 PDT"]
[Termination "RichardABates won by checkmate"]

1. d4 {[%clk 0:04:58.6]} 1... g6 {[%clk 0:04:58]} 2. e4 {[%clk 0:04:56.7]} 2...
Bg7 {[%clk 0:04:57.2]} 3. Nc3 {[%clk 0:04:54]} 3... d6 {[%clk 0:04:56.6]} 4. Be3
{[%clk 0:04:52.7]} 4... a6 {[%clk 0:04:56.1]} 5. Qd2 {[%clk 0:04:46.8]} 5... b5
{[%clk 0:04:54.5]} 6. f3 {[%clk 0:04:45.5]} 6... Nd7 {[%clk 0:04:53.2]} 7. h4
{[%clk 0:04:43.7]} 7... h6 {[%clk 0:04:47.7]} 8. h5 {[%clk 0:04:40.6]} 8... g5
{[%clk 0:04:46.5]} 9. a4 {[%clk 0:04:35.4]} 9... b4 {[%clk 0:04:44.9]} 10. Nce2
{[%clk 0:04:34.1]} 10... a5 {[%clk 0:04:39.6]} 11. Ng3 {[%clk 0:04:30]} 11... e6
{[%clk 0:04:34]} 12. Bb5 {[%clk 0:04:28.8]} 12... c6 {[%clk 0:04:31.6]} 13. Bxc6
{[%clk 0:04:26.5]} 13... Ra6 {[%clk 0:04:25]} 14. Bb5 {[%clk 0:04:25]} 14... Rb6
{[%clk 0:04:23.3]} 15. N1e2 {[%clk 0:04:20]} 15... Ba6 {[%clk 0:04:20.6]} 16.
Qd3 {[%clk 0:04:15.3]} 16... Bxb5 {[%clk 0:04:18.7]} 17. axb5 {[%clk 0:04:13.6]}
17... Qa8 {[%clk 0:04:13.2]} 18. c4 {[%clk 0:04:09.8]} 18... Ngf6 {[%clk
0:04:02.2]} 19. c5 {[%clk 0:04:03.8]} 19... dxc5 {[%clk 0:03:58.6]} 20. dxc5
{[%clk 0:04:02.7]} 20... Ne5 {[%clk 0:03:49.7]} 21. Qd4 {[%clk 0:03:55.1]} 21...
Nfd7 {[%clk 0:03:34.4]} 22. cxb6 {[%clk 0:03:51.1]} 22... Nxf3+ {[%clk
0:03:33.3]} 23. gxf3 {[%clk 0:03:49.8]} 23... Bxd4 {[%clk 0:03:32.2]} 24. Bxd4
{[%clk 0:03:48]} 24... O-O {[%clk 0:03:23.4]} 25. Kf2 {[%clk 0:03:37.2]} 25...
e5 {[%clk 0:03:08.1]} 26. Be3 {[%clk 0:03:35.5]} 26... a4 {[%clk 0:02:47.7]} 27.
Nf5 {[%clk 0:03:32.1]} 27... Kh7 {[%clk 0:02:42.3]} 28. Rhd1 {[%clk 0:03:14.8]}
28... Nf6 {[%clk 0:02:40.1]} 29. Rd6 {[%clk 0:03:12.5]} 29... Nxe4+ {[%clk
0:01:56]} 30. fxe4 {[%clk 0:03:06.3]} 30... f6 {[%clk 0:01:55]} 31. Rd7+ {[%clk
0:03:01.2]} 31... Kh8 {[%clk 0:01:48.6]} 32. b7 {[%clk 0:02:59.6]} 32... Qb8
{[%clk 0:01:33.2]} 33. Rxa4 {[%clk 0:02:46.4]} 33... Rd8 {[%clk 0:01:29.2]} 34.
Rxd8+ {[%clk 0:02:44.9]} 34... Qxd8 {[%clk 0:01:27.9]} 35. Ra8 {[%clk
0:02:43.9]} 35... Qxa8 {[%clk 0:01:24.4]} 36. bxa8=Q+ {[%clk 0:02:41.8]} 36...
Kh7 {[%clk 0:01:23.3]} 37. Qb7+ {[%clk 0:02:41]} 37... Kg8 {[%clk 0:01:20.7]}
38. Qg7# {[%clk 0:02:40.9]} 1-0